bitfinex-derivatives/quotes_SOLF0:USTF0_20250924
["timestamp","ask_amount","ask_price","bid_price","bid_amount"]
[1758705844661,11.819,210.27,210.25,7.52]
[1758705844862,7.54,210.27,210.24,115.46]
[1758705845365,7.54,210.27,210.24,122.98]
[1758705845766,4.2793,210.26,210.24,122.98]
[1758705846462,11.8193,210.26,210.24,122.98]
[1758705849562,4.2793,210.26,210.24,115.46]
[1758705849767,4.2793,210.26,210.24,122.98]
[1758705850168,4.2793,210.26,210.25,7.52]
[1758705850376,11.81477,210.28,210.25,7.52]
[1758705850674,11.81477,210.28,210.27,7.52]
[1758705852380,11.81477,210.28,210.27,8.90181726]
[1758705853866,10.92122946,210.28,210.27,9.38181726]
[1758705856582,10.92122946,210.28,210.27,7.52]
[1758705856883,10.92122946,210.28,210.27,8.90181726]
[1758705859876,10.92122946,210.28,210.27,124.38181726]
[1758705863695,10.92122946,210.28,210.27,123.0]
[1758705878005,2.946e-05,210.28,210.27,124.38181726]
[1758705883404,2.946e-05,210.28,210.27,123.0]
[1758705885112,7.72,210.4,210.33,7.3]
[1758705885412,7.72,210.4,210.34,25.56]
[1758705885605,1.38181726,210.41,210.33,7.3]
[1758705885806,7.72,210.4,210.34,25.46]
[1758705889206,7.72,210.4,210.35,4.2771]
[1758705889910,4.2762,210.41,210.35,4.2771]
[1758705890610,4.2762,210.41,210.35,11.5771]
[1758705890807,7.72,210.4,210.35,11.5771]
[1758705891112,4.2762,210.41,210.35,11.5771]
[1758705891312,7.72,210.4,210.35,11.5771]
[1758705891513,4.2762,210.41,210.35,11.5771]
[1758705891712,7.72,210.4,210.35,11.5771]
[1758705892211,4.2762,210.41,210.36,115.56]
[1758705892612,7.72,210.4,210.36,115.56]
[1758705892809,4.2764,210.4,210.37,115.54]
[1758705893114,7.72,210.39,210.38,115.54]
[1758705893609,7.72,210.39,210.34,7.3]
[1758705893815,7.68,210.39,210.35,62.3]
[1758705894114,4.2764,210.4,210.35,69.58]
[1758705894510,7.68,210.44,210.37,7.28]
[1758705897818,4.2758,210.43,210.37,7.28]
[1758705898519,7.68,210.42,210.38,112.48]
[1758705898907,4.2758,210.43,210.38,112.48]
[1758705899313,7.39,210.42,210.38,112.48]
[1758705899511,4.2758,210.43,210.38,112.48]
[1758705900119,4.276,210.42,210.38,112.48]
[1758705900321,7.39,210.41,210.38,112.48]
[1758705900520,4.276,210.42,210.38,112.48]
[1758705900717,7.39,210.41,210.38,112.48]
[1758705901019,7.39,210.4,210.38,115.68]
[1758705901922,7.39,210.4,210.38,123.01]
[1758705903126,7.39,210.42,210.39,7.33]
[1758705905822,7.39,210.42,210.38,119.9566]
[1758705906024,7.39,210.47,210.39,7.33]
[1758705906523,7.39,210.47,210.36,11.31839503]
[1758705906725,2.15410645,210.48,210.37,24.96]
[1758705907121,7.39,210.47,210.37,24.96]
[1758705907326,2.15410645,210.48,210.38,7.33]
[1758705907526,7.39,210.47,210.38,7.33]
[1758705908830,4.276,210.44,210.38,11.607]
[1758705909130,11.666,210.44,210.38,11.607]
[1758705915029,7.39,210.44,210.38,11.607]
[1758705915233,4.2762,210.43,210.38,11.607]
[1758705915434,7.39,210.42,210.39,7.33]
[1758705915635,7.39,210.42,210.38,4.277]
[1758705915835,11.6662,210.43,210.38,4.277]
[1758705916833,11.6662,210.43,210.39,7.33]
[1758705917033,11.6662,210.43,210.38,4.277]
[1758705917235,11.6662,210.43,210.39,7.33]
[1758705917630,7.39,210.43,210.39,7.33]
[1758705917837,7.39,210.47,210.38,7.33]
[1758705918035,7.39,210.47,210.39,7.33]
[1758705918440,7.39,210.47,210.39,3.98839503]
[1758705918634,7.39,210.55,210.4,7.33]
[1758705919132,4.2747,210.5,210.44,4.2757]
[1758705920139,7.39,210.49,210.44,4.2757]
[1758705920433,7.39,210.49,210.44,11.6057]
[1758705920634,4.2747,210.5,210.44,11.6057]
[1758705920839,7.39,210.49,210.44,4.2757]
[1758705921042,4.2747,210.5,210.44,4.2757]
[1758705921243,7.39,210.49,210.44,4.2757]
[1758705921444,11.6647,210.5,210.44,4.2757]
[1758705926941,74.3618,210.51,210.39,12.00839503]
[1758705927143,7.87,210.48,210.39,8.02]
[1758705927940,4.2759,210.44,210.39,8.02]
[1758705928346,66.4984,210.49,210.39,8.02]
[1758705928347,7.87,210.49,210.39,8.02]
[1758705928546,2.15410645,210.5,210.39,12.2967]
[1758705928547,7.87,210.46,210.39,12.2967]
[1758705929350,12.1455,210.46,210.39,12.2967]
[1758705929542,12.1455,210.46,210.39,16.28509503]
[1758705930254,12.1455,210.46,210.4,4.2765]
[1758705930548,12.1455,210.46,210.41,8.02]
[1758705930749,4.2755,210.46,210.4,8.26489503]
[1758705931050,4.2755,210.46,210.4,16.28489503]
[1758705932456,7.87,210.47,210.41,4.2762]
[1758705932848,12.145,210.48,210.42,8.02]
[1758705935350,66.4944,210.5,210.41,3.98839503]
[1758705935556,66.4944,210.5,210.38,8.02]
[1758705935557,7.87,210.47,210.38,8.02]
[1758705935756,66.5006,210.48,210.38,35.48]
[1758705936749,4.276,210.44,210.38,35.48]
[1758705937852,7.87,210.43,210.38,35.48]
[1758705938050,4.276,210.44,210.38,35.48]
[1758705938250,4.276,210.44,210.38,39.46839503]
[1758705938448,7.87,210.43,210.38,39.46839503]
[1758705938650,4.276,210.44,210.38,31.44839503]
[1758705938955,7.87,210.51,210.41,8.02]
[1758705939153,7.87,210.51,210.41,3.98839503]
[1758705939349,7.87,210.51,210.42,8.02]
[1758705940755,4.2747,210.5,210.42,12.2961]
[1758705941354,4.2747,210.5,210.43,8.02]
[1758705942757,4.2749,210.49,210.43,8.02]
[1758705943163,7.87,210.51,210.42,3.98839503]
[1758705943456,7.87,210.51,210.44,8.02]
[1758705943661,7.87,210.51,210.44,12.00839503]
[1758705944761,2.15410645,210.56,210.45,3.98839503]
[1758705944954,7.87,210.55,210.46,8.02]
[1758705945857,4.274,210.53,210.47,8.02]
[1758705950267,4.274,210.53,210.47,8.02]
[1758705953465,4.274,210.53,210.48,8.02]
[1758705953656,4.274,210.53,210.48,7.9]
[1758705954062,4.274,210.53,210.47,4.2751]
[1758705955364,11.584,210.53,210.47,4.2751]
[1758705955968,11.584,210.53,210.48,7.9]
[1758705956265,11.584,210.53,210.47,4.2751]
[1758705956466,11.584,210.53,210.48,7.9]
[1758705956669,11.584,210.53,210.47,4.2751]
[1758705957366,11.584,210.53,210.48,7.9]
[1758705957763,4.274,210.53,210.48,7.9]
[1758705957975,7.31,210.52,210.46,43.15699888]
[1758705958565,7.31,210.52,210.46,7.9]
[1758705958759,1.37699888,210.51,210.42,8.26449503]
[1758705959070,7.31,210.5,210.43,119.30839503]
[1758705959271,7.31,210.5,210.44,7.5]
[1758705959770,4.2749,210.49,210.44,7.5]
[1758705959968,4.2749,210.49,210.43,119.30839503]
[1758705960168,4.2749,210.49,210.44,7.5]
[1758705960462,4.2749,210.49,210.43,119.30839503]
[1758705960664,11.5049,210.49,210.43,119.30839503]
[1758705960865,11.5049,210.49,210.44,7.5]
[1758705961063,11.5049,210.49,210.43,119.30839503]
[1758705961271,11.5049,210.49,210.44,7.5]
[1758705961459,11.5049,210.49,210.43,119.30839503]
[1758705961768,11.5049,210.49,210.44,7.5]
[1758705961967,11.5049,210.49,210.43,119.30839503]
[1758705962570,11.5049,210.49,210.44,7.5]
[1758705962764,11.5049,210.49,210.43,133.46229038]
[1758705964170,7.23,210.48,210.44,7.5]
[1758705964365,7.23,210.48,210.45,115.36]
[1758705964970,7.23,210.48,210.45,122.86]
[1758705966371,7.23,210.48,210.46,7.5]
[1758705967666,4.2749,210.49,210.45,115.36]
[1758705967862,4.2749,210.49,210.46,7.5]
[1758705968269,4.2749,210.49,210.45,115.36]
[1758705968474,11.5049,210.49,210.46,7.5]
[1758705968673,7.23,210.49,210.46,7.5]
[1758705969570,7.23,210.49,210.45,115.36]
[1758705969765,7.23,210.49,210.46,7.5]
[1758705969969,4.2747,210.5,210.46,7.5]
[1758705970273,7.23,210.49,210.46,7.5]
[1758705971269,4.2747,210.5,210.46,7.5]
[1758705971470,7.23,210.48,210.43,3.99404065]
[1758705971670,7.23,210.45,210.4,349.89404065]
[1758705971970,4.2759,210.44,210.41,115.34]
[1758705972271,7.23,210.43,210.41,115.34]
[1758705973274,7.23,210.43,210.4,349.89404065]
[1758705973469,7.23,210.43,210.41,115.34]
[1758705974073,7.23,210.43,210.41,122.84]
[1758705976476,7.23,210.53,210.42,7.5]
[1758705976779,1.37699888,210.48,210.42,7.5]
[1758705977275,7.23,210.47,210.42,7.5]
[1758705977774,11.5053,210.47,210.42,7.5]
[1758705977974,7.23,210.46,210.42,7.5]
[1758705978580,7.23,210.46,210.41,119.33404065]
[1758705978775,7.23,210.46,210.42,7.5]
[1758705979479,11.5055,210.46,210.42,7.5]
[1758705979682,7.23,210.45,210.42,7.5]
[1758705982681,7.23,210.45,210.41,119.33404065]
[1758705982879,7.23,210.45,210.42,7.5]
[1758705983286,7.23,210.45,210.42,11.49404065]
[1758705987796,7.23,210.45,210.42,3.99404065]
[1758705987990,7.23,210.45,210.42,11.30404065]
[1758705989590,7.23,210.45,210.42,7.31]
[1758705990896,7.23,210.45,210.41,119.33404065]
[1758705991090,7.23,210.45,210.42,11.30404065]
[1758705991690,4.2755,210.46,210.42,11.30404065]
[1758705991896,7.98,210.45,210.42,11.30404065]
[1758705992999,7.98,210.45,210.42,7.31]
[1758705993201,7.98,210.45,210.42,11.30404065]
[1758705993800,7.98,210.45,210.42,3.99404065]
[1758705994000,7.98,210.45,210.43,7.31]
[1758705998702,4.2755,210.46,210.43,7.31]
[1758705998703,12.2555,210.46,210.43,7.31]
[1758705999904,4.2755,210.46,210.43,7.31]
[1758706000313,12.2555,210.46,210.43,7.31]
[1758706000603,7.98,210.45,210.43,7.31]
[1758706001811,7.98,210.45,210.43,11.30404065]
[1758706003307,7.98,210.45,210.43,3.99404065]
[1758706003508,7.98,210.45,210.43,11.30404065]
[1758706004612,7.98,210.45,210.43,11.31306033]
[1758706008621,67.87819888,210.48,210.42,4.00306033]
[1758706008816,7.98,210.47,210.43,115.28]
[1758706009014,67.87819888,210.48,210.43,115.28]
[1758706009312,12.2558,210.44,210.43,115.28]
[1758706011912,12.2558,210.44,210.39,4.00399921]
[1758706011913,7.98,210.44,210.39,4.00399921]
[1758706012104,1.37699888,210.42,210.39,115.28]
[1758706012303,12.2565,210.41,210.39,115.28]
[1758706014018,7.67,210.43,210.4,7.72]
[1758706014219,1.37699888,210.44,210.4,7.72]
[1758706014411,11.9463,210.42,210.39,115.28]
[1758706014614,7.67,210.41,210.39,115.28]
[1758706016011,7.67,210.41,210.39,123.0]
[1758706016817,4.2766,210.41,210.38,4.00399921]
[1758706017117,66.5227,210.41,210.34,11.72399921]
[1758706017314,66.5227,210.41,210.34,115.28]
[1758706018314,7.67,210.4,210.34,115.28]
[1758706018914,7.67,210.36,210.34,115.28]
[1758706019116,7.67,210.36,210.34,123.0]
[1758706019824,11.9476,210.36,210.34,115.28]
[1758706020019,7.76,210.35,210.34,115.28]
[1758706021227,7.76,210.33,210.27,115.3]
[1758706021525,7.76,210.32,210.27,115.3]
[1758706021820,2.15421633,210.33,210.27,115.3]
[1758706022224,12.039,210.29,210.27,115.3]
[1758706022722,2.15421633,210.29,210.2,7.52]
[1758706022925,74.3248,210.28,210.2,7.52]
[1758706023223,7.76,210.27,210.2,26.18]
[1758706023414,7.76,210.27,210.2,18.66]
[1758706023620,7.76,210.24,210.15,7.52]
[1758706023921,2.15421633,210.25,210.16,21.9]
[1758706024427,7.76,210.2,210.15,51.18]
[1758706024722,12.0406,210.21,210.15,51.18]
[1758706026625,7.76,210.18,210.12,63.34]
[1758706026823,7.76,210.18,210.12,70.86]
[1758706029224,4.2814,210.17,210.12,7.52]
[1758706029426,7.76,210.16,210.1,123.0]
[1758706036326,7.76,210.2,210.11,7.52]
[1758706037829,7.76,210.2,210.12,7.52]
[1758706041032,12.0409,210.2,210.12,7.52]
[1758706041931,12.0409,210.2,210.13,7.52]
[1758706042932,7.76,210.2,210.13,7.52]
[1758706043831,7.76,210.2,210.15,4.2816]
[1758706044229,7.76,210.2,210.16,7.6]
[1758706044735,7.76,210.2,210.15,4.2816]
[1758706044934,7.76,210.2,210.16,7.6]
[1758706045530,7.76,210.2,210.15,4.2816]
[1758706045731,7.76,210.2,210.16,7.6]
[1758706046029,7.76,210.2,210.15,4.2816]
[1758706046233,7.76,210.2,210.14,7.6]
[1758706051142,9.90421633,210.21,210.11,7.6]
[1758706051344,7.75,210.15,210.11,7.6]
[1758706052042,7.75,210.15,210.1,115.48]
[1758706052245,4.2817,210.16,210.1,115.48]
[1758706052442,12.0317,210.16,210.1,123.08]
[1758706060151,12.0317,210.16,210.1,119.7626]
[1758706061459,7.75,210.16,210.11,7.6]
[1758706061652,7.75,210.16,210.1,119.7626]
[1758706061956,4.2812,210.18,210.1,119.7626]
[1758706061957,4.2812,210.18,210.11,7.6]
[1758706062856,7.75,210.17,210.14,7.6]
[1758706063249,68.73181633,210.24,210.11,4.00399921]
[1758706063250,4.2815,210.16,210.11,4.00399921]
[1758706063452,66.5936,210.19,210.08,11.60399921]
[1758706063652,7.75,210.17,210.08,106.68399921]
[1758706063850,68.75691633,210.16,210.05,4.00399921]
[1758706064057,66.6051,210.15,210.06,115.44]
[1758706064452,7.75,210.14,210.06,115.44]
[1758706064654,66.6051,210.15,210.06,115.44]
[1758706065059,7.75,210.14,210.06,115.44]
[1758706065259,66.6051,210.15,210.06,115.44]
[1758706065564,12.033,210.09,210.06,123.04]
[1758706067361,12.033,210.09,210.06,115.44]
[1758706067561,4.283,210.09,210.07,7.6]
[1758706069258,12.033,210.09,210.07,7.6]
[1758706070563,7.75,210.09,210.07,7.6]
[1758706071668,7.75,210.09,210.04,4.00399921]
[1758706071669,4.2821,210.13,210.05,7.6]
[1758706071968,12.0321,210.13,210.05,7.6]
[1758706072766,12.0321,210.13,210.05,11.8836]
[1758706072968,4.2825,210.12,210.05,11.8836]
[1758706073465,7.75,210.11,210.05,11.8836]
[1758706075063,7.75,210.11,210.05,7.6]
[1758706075464,14.45107065,210.15,210.05,7.6]
[1758706075662,7.94,210.14,210.05,7.6]
[1758706076870,4.2823,210.13,210.05,7.6]
[1758706077175,7.94,210.14,210.05,7.6]
[1758706077467,4.2827,210.11,210.05,7.6]
[1758706077677,12.2227,210.11,210.05,7.6]
[1758706078674,4.2829,210.1,210.05,7.6]
[1758706078867,4.2829,210.1,210.04,7.9]
[1758706079676,7.94,210.11,210.04,7.9]
[1758706080969,1.38297715,210.06,210.0,7.73]
[1758706081270,7.42,210.05,210.0,7.73]
[1758706081473,1.38297715,210.06,210.0,7.73]
[1758706081971,7.42,210.02,210.0,7.73]
[1758706082572,7.42,210.01,209.94,9.11297715]
[1758706083167,7.42,210.01,209.94,7.73]
[1758706083372,1.38297715,210.0,209.94,7.73]
[1758706083575,7.42,209.99,209.94,7.73]
[1758706083773,7.42,209.98,209.94,7.73]
[1758706084673,7.42,209.98,209.92,7.73]
[1758706085376,11.7052,209.98,209.92,7.73]
[1758706087166,4.2855,209.97,209.92,7.73]
[1758706087567,7.42,209.93,209.86,7.73]
[1758706088572,66.6525,210.0,209.86,7.73]
[1758706088573,4.2856,209.96,209.86,7.73]
[1758706088773,1.38297715,209.96,209.86,9.11297715]
[1758706089869,1.38297715,209.96,209.89,7.73]
[1758706090579,7.42,209.97,209.87,66.6931]
[1758706090780,5.66787715,209.99,209.88,9.11297715]
[1758706090981,5.66787715,209.99,209.9,7.73]
[1758706091875,5.66787715,209.99,209.91,7.73]
[1758706093178,5.66787715,209.99,209.93,7.73]
[1758706093179,1.38297715,209.99,209.93,7.73]
[1758706093582,7.42,210.0,209.93,12.016]
[1758706094484,11.7049,210.0,209.93,12.016]
[1758706094884,11.7049,210.0,209.93,7.73]
[1758706095580,13.08787715,210.0,209.93,7.73]
[1758706097883,5.66717715,210.03,209.93,7.73]
[1758706098389,5.66717715,210.03,209.96,7.73]
[1758706099484,1.38297715,210.03,209.96,7.73]
[1758706100789,4.2847,210.01,209.96,7.73]
[1758706100990,4.2847,210.01,209.93,4.286]
[1758706101288,4.2847,210.01,209.94,7.73]
[1758706101992,11.7049,210.0,209.94,7.73]
[1758706102184,7.42,210.0,209.94,7.73]
[1758706103183,7.42,210.07,209.95,4.2856]
[1758706103391,7.42,210.04,209.96,7.73]
[1758706103890,4.2844,210.02,209.96,7.73]
[1758706108489,7.42,210.04,209.96,7.73]
[1758706109090,7.42,210.04,209.95,1.38297715]
[1758706109392,7.42,210.04,209.96,7.96]
[1758706110792,4.2841,210.03,209.96,4.2854]
[1758706110991,4.2841,210.03,209.97,7.96]
[1758706111183,7.42,210.04,209.97,7.96]
[1758706112397,11.7041,210.04,209.97,12.2452]
[1758706112994,11.7041,210.04,209.97,13.62817715]
[1758706114689,11.7041,210.04,209.99,7.96]
[1758706114690,7.42,210.04,209.99,7.96]
[1758706114896,7.42,210.04,209.98,4.285]
[1758706115395,7.42,210.04,209.98,12.245]
[1758706115591,11.704,210.04,209.98,12.245]
[1758706120602,11.704,210.04,209.98,4.285]
[1758706120989,11.704,210.04,209.99,7.96]
[1758706121195,7.55,210.07,210.0,7.96]
[1758706121399,7.55,210.07,210.01,1.38297715]
[1758706121689,11.8334,210.07,210.01,5.66737715]
[1758706121898,11.8334,210.07,210.02,7.96]
[1758706122097,11.8334,210.07,210.01,5.66737715]
[1758706122498,7.55,210.11,210.04,7.96]
[1758706122795,7.55,210.11,210.05,1.38297715]
[1758706123402,7.55,210.11,210.06,12.2434]
[1758706123595,4.2821,210.13,210.07,7.96]
[1758706123793,4.2821,210.13,210.07,9.34297715]
[1758706123997,7.55,210.14,210.07,13.62617715]
[1758706124200,7.55,210.14,210.08,7.96]
[1758706124693,7.55,210.14,210.08,9.34297715]
[1758706125604,7.55,210.18,210.11,9.34297715]
[1758706125902,1.38297715,210.21,210.08,96.96]
[1758706125903,67.98187715,210.17,210.08,104.92]
[1758706126102,7.55,210.14,210.05,9.34297715]
[1758706126310,7.55,210.14,210.05,117.18297715]
[1758706126699,1.38297715,210.15,210.05,117.18297715]
[1758706126895,7.55,210.14,210.05,117.18297715]
[1758706127807,4.2826,210.11,210.05,117.18297715]
[1758706130404,4.2829,210.09,210.05,109.22297715]
[1758706130600,4.2829,210.09,210.06,7.96]
[1758706131601,4.2829,210.09,210.05,109.22297715]
[1758706132003,4.2829,210.09,210.06,7.96]
[1758706132606,4.2829,210.09,210.05,107.84]
[1758706133107,4.2829,210.09,210.06,7.96]
[1758706133606,4.2829,210.09,210.05,107.84]
[1758706134006,4.2829,210.09,210.06,7.44]
[1758706134209,4.2829,210.09,210.05,107.84]
[1758706135207,4.2829,210.09,210.06,7.44]
[1758706135706,4.2829,210.09,210.05,107.84]
[1758706136106,4.2829,210.09,210.06,7.44]
[1758706136508,4.2829,210.09,210.05,107.84]
[1758706136704,11.8324,210.12,210.06,7.44]
[1758706137012,9.22297715,210.18,210.1,7.44]
[1758706137312,7.84,210.18,210.12,7.44]
[1758706138807,4.2816,210.16,210.12,7.44]
[1758706139012,4.2816,210.16,210.11,20.78]
[1758706139209,4.2816,210.16,210.12,7.83]
[1758706140015,4.2816,210.16,210.11,20.78]
[1758706140314,7.84,210.18,210.12,7.83]
[1758706141309,7.85,210.15,210.12,7.83]
[1758706141511,7.85,210.15,210.09,7.83]
[1758706141715,7.85,210.15,210.09,52.95]
[1758706142808,12.1318,210.15,210.09,52.95]
[1758706143423,4.2818,210.15,210.1,7.83]
[1758706143611,4.2818,210.15,210.09,45.12]
[1758706143814,4.2818,210.15,210.1,7.83]
[1758706144005,4.2818,210.15,210.09,45.12]
[1758706144413,4.2813,210.17,210.11,7.83]
[1758706149516,4.2813,210.17,210.11,12.1124]
[1758706149916,4.2813,210.17,210.12,7.83]
[1758706150117,4.2813,210.17,210.11,4.2824]
[1758706150519,4.2813,210.17,210.12,7.83]
[1758706150923,12.1313,210.17,210.11,4.2824]
[1758706151326,4.2813,210.17,210.11,4.2824]
[1758706152133,4.2813,210.17,210.12,7.83]
[1758706152522,4.2809,210.19,210.13,4.282]
[1758706153034,4.2809,210.19,210.14,4.2818]
[1758706153231,12.1309,210.19,210.15,7.83]
[1758706153735,4.2806,210.21,210.16,7.83]
[1758706153938,12.1306,210.21,210.15,4.2815]
[1758706154440,12.1306,210.21,210.16,7.83]
[1758706154628,12.1306,210.21,210.15,4.2815]
[1758706154831,12.1306,210.21,210.16,7.83]
[1758706155030,12.1306,210.21,210.15,4.2815]
[1758706155730,12.1306,210.21,210.16,7.83]
[1758706155936,12.1306,210.21,210.15,4.2815]
[1758706156438,4.2806,210.21,210.16,7.83]
[1758706156625,4.2806,210.21,210.15,4.2815]
[1758706157032,4.2806,210.21,210.16,7.83]
[1758706157538,7.85,210.2,210.15,4.2815]
[1758706157838,7.85,210.2,210.16,7.83]
[1758706158045,7.85,210.2,210.15,4.2815]
[1758706158236,74.4333,210.22,210.12,7.83]
[1758706159127,12.1309,210.19,210.12,7.83]
[1758706160137,12.1309,210.19,210.14,7.83]
[1758706160637,12.1309,210.19,210.13,4.282]
[1758706160837,4.2809,210.19,210.13,4.282]
[1758706161134,7.85,210.18,210.13,4.282]
[1758706161741,7.85,210.18,210.11,12.1124]
[1758706162136,7.85,210.18,210.11,4.2824]
[1758706162338,7.85,210.18,210.12,12.1122]
[1758706162739,7.85,210.18,210.12,7.83]
[1758706163843,7.85,210.18,210.14,7.36]
[1758706164437,7.85,210.18,210.13,4.282]
[1758706164833,7.85,210.18,210.14,7.36]
[1758706165342,7.85,210.18,210.13,4.282]
[1758706166043,7.85,210.18,210.14,7.36]
[1758706167340,7.85,210.18,210.13,4.282]
[1758706167540,7.85,210.18,210.14,7.36]
[1758706168843,7.85,210.18,210.13,4.282]
[1758706169740,7.85,210.18,210.14,7.36]
[1758706169940,7.85,210.18,210.13,4.282]
[1758706171552,7.85,210.18,210.14,7.36]
[1758706172051,7.85,210.18,210.13,4.282]
[1758706174147,7.85,210.18,210.14,7.36]
[1758706174347,7.85,210.18,210.13,4.282]
[1758706174550,58.46772899,212.43,210.14,7.36]
[1758706174852,2.15931574,210.31,210.17,3.98143777]
[1758706175044,7.27,210.29,210.18,20.78]
[1758706175246,66.5577,210.3,210.18,20.78]
[1758706175648,7.27,210.29,210.18,20.78]
[1758706175850,66.5577,210.3,210.18,20.78]
[1758706176351,11.5498,210.25,210.18,20.78]
[1758706177756,11.5498,210.25,210.19,4.2807]
[1758706178656,7.27,210.26,210.2,11.6405]
[1758706178853,7.27,210.26,210.2,7.36]
[1758706179057,7.27,210.29,210.2,7.36]
[1758706179358,7.27,210.29,210.24,4.2797]
[1758706179652,7.27,210.29,210.25,7.36]
[1758706180059,7.27,210.32,210.25,11.6395]
[1758706181262,7.27,210.32,210.26,4.2793]
[1758706181655,7.27,210.32,210.26,120.1593]
[1758706182457,7.27,210.32,210.28,11.639]
[1758706182660,7.27,210.37,210.29,7.36]
[1758706183560,7.27,210.37,210.29,11.6386]
[1758706184465,7.27,210.37,210.3,4.2785]
[1758706184959,7.27,210.37,210.31,7.36]
[1758706186460,7.27,210.37,210.31,11.6382]
[1758706186763,7.27,210.37,210.29,7.36]
[1758706186959,11.5466,210.4,210.29,7.36]
[1758706187963,7.27,210.45,210.35,7.36]
[1758706188262,7.27,210.45,210.37,7.36]
[1758706188461,7.27,210.45,210.38,7.36]
[1758706200668,7.27,210.45,210.39,1.37811858]
[1758706203973,7.27,210.45,210.39,5.65481858]
[1758706205972,7.27,210.45,210.41,1.37811858]
[1758706206174,7.98,210.53,210.44,7.44]
[1758706206374,7.98,210.53,210.45,117.15811858]
[1758706206571,1.37811858,210.54,210.45,117.15811858]
[1758706206767,7.98,210.53,210.45,117.15811858]
[1758706207880,7.98,210.52,210.45,121.43361858]
[1758706209877,7.98,210.52,210.49,1.37811858]
[1758706210074,7.98,210.58,210.49,1.37811858]
[1758706210676,4.2732,210.57,210.5,7.44]
[1758706210882,7.98,210.56,210.5,7.44]
[1758706212774,4.2724,210.61,210.53,7.44]
[1758706212977,7.98,210.6,210.54,115.76]
[1758706213488,7.98,210.6,210.54,117.13811858]
[1758706214279,7.98,210.6,210.54,115.76]
[1758706218284,7.98,210.6,210.53,7.44]
[1758706218479,1.37811858,210.61,210.54,21.34]
[1758706218674,7.98,210.6,210.55,21.34]
[1758706219076,4.2731,210.58,210.55,21.34]
[1758706219384,7.98,210.57,210.55,21.34]
[1758706220085,4.2731,210.58,210.47,7.44]
[1758706220086,7.98,210.55,210.47,7.44]
[1758706220380,66.4691,210.58,210.47,7.44]
[1758706220381,1.37811858,210.53,210.47,123.24]
[1758706220775,7.98,210.52,210.48,7.44]
[1758706221882,4.2736,210.55,210.48,7.44]
[1758706222091,1.37811858,210.56,210.48,7.44]
[1758706223778,5.65161858,210.56,210.48,11.715]
[1758706224686,1.37811858,210.56,210.48,7.44]